fUST/lending_fUST_20240213
["ID","MTS","AMOUNT","RATE_DAILY","PERIOD"]
[313891703,1707773447332,-2964.36,0.00026447,2]
[313891704,1707773447341,-500.0,0.00026447,2]
[313891705,1707773447352,-500.0,0.00026447,2]
[313891706,1707773447361,-500.0,0.00026447,2]
[313891707,1707773447369,-294.73498546,0.00026501,2]
[313891708,1707773447378,-8683.55680084,0.00026502,4]
[313891709,1707773447387,-500.0,0.00026575,2]
[313891710,1707773447396,-2812.37,0.00026575,2]
[313891711,1707773447405,-3357.62,0.00026575,2]
[313891712,1707773447414,-245.56015616,0.00026575,2]
[313891713,1707773447423,-500.0,0.00026575,2]
[313891714,1707773447433,-500.0,0.00026575,2]
[313891715,1707773447442,-500.0,0.00026575,2]
[313891716,1707773447451,-500.0,0.00026575,2]
[313891717,1707773447460,-500.0,0.00026575,2]
[313891718,1707773447472,-500.0,0.00026575,2]
[313891719,1707773447481,-636.17,0.00026575,2]
[313891720,1707773447490,-1952.94,0.00026575,2]
[313891721,1707773447499,-2420.10703397,0.000266,2]
[313891722,1707773447508,-260.84455316,0.00026621,2]
[313891723,1707773447518,-153.34627261,0.00026628,2]
[313891724,1707773447527,-1280.95,0.00026721,2]
[313891725,1707773447536,-500.0,0.00026721,2]
[313891726,1707773447546,-500.0,0.00026721,2]
[313891727,1707773447555,-500.0,0.00026721,2]
[313891728,1707773447564,-500.0,0.00026721,2]
[313891729,1707773447574,-1011.45,0.00026721,2]
[313891730,1707773447583,-500.0,0.00026721,2]
[313891731,1707773447592,-500.0,0.00026721,2]
[313891732,1707773447602,-500.0,0.00026721,2]
[313891733,1707773447611,-2964.36,0.00026721,2]
[313891734,1707773447621,-500.0,0.00026721,2]
[313891735,1707773447630,-500.0,0.00026721,2]
[313891736,1707773447639,-500.0,0.00026721,2]
[313891737,1707773447648,-1962.08695395,0.00026795,2]
[313891738,1707773447660,-214.1569826,0.00026795,2]
[313891739,1707773447669,-227.82666533,0.00026796,2]
[313891740,1707773447678,-20940.57997335,0.00026796,2]
[313891741,1707773447688,-500.0,0.00026849,2]
[313891742,1707773447698,-2812.37,0.00026849,2]
[313891743,1707773447707,-3357.62,0.00026849,2]
[313891744,1707773447717,-500.0,0.00026849,2]
[313891745,1707773447727,-500.0,0.00026849,2]
[313891746,1707773447736,-500.0,0.00026849,2]
[313891747,1707773447746,-500.0,0.00026849,2]
[313891748,1707773447755,-500.0,0.00026849,2]
[313891749,1707773447765,-500.0,0.00026849,2]
[313891750,1707773447774,-636.17,0.00026849,2]
[313891751,1707773447782,-1952.94,0.00026849,2]
[313891752,1707773447791,-153.34627261,0.00026929,2]
[313891753,1707773447801,-1280.95,0.00026995,2]
[313891754,1707773447810,-500.0,0.00026995,2]
[313891755,1707773447820,-500.0,0.00026995,2]
[313891756,1707773447828,-500.0,0.00026995,2]
[313891757,1707773447920,-500.0,0.00026995,2]
[313891758,1707773447944,-1011.45,0.00026995,2]
[313891759,1707773447954,-500.0,0.00026995,2]
[313891760,1707773447963,-500.0,0.00026995,2]
[313891761,1707773447973,-500.0,0.00026995,2]
[313891762,1707773447982,-2964.36,0.00026995,2]
[313891763,1707773447991,-500.0,0.00026995,2]
[313891764,1707773448000,-500.0,0.00026995,2]
[313891765,1707773448009,-500.0,0.00026995,2]
[313891766,1707773448017,-274.68810879,0.00026997,2]
[313891767,1707773448026,-3062.68810289,0.00027,2]
[313891768,1707773448035,-156.01359364,0.00027,2]
[313891769,1707773448044,-415.77215257,0.00027123,2]
[313891770,1707773448053,-2812.37,0.00027123,2]
[313891771,1707773448063,-3357.62,0.00027123,2]
[313891772,1707773448072,-500.0,0.00027123,2]
[313891773,1707773448081,-500.0,0.00027123,2]
[313891774,1707773448091,-500.0,0.00027123,2]
[313891775,1707773448100,-338.08,0.00027123,2]
[313891776,1707773448109,-500.0,0.00027123,2]
[313891777,1707773448118,-500.0,0.00027123,2]
[313891778,1707773448127,-636.17,0.00027123,2]
[313891779,1707773448137,-1952.94,0.00027123,2]
[313891780,1707773448147,-620.57376737,0.00027166,2]
[313891781,1707773448157,-1280.95,0.00027269,2]
[313891782,1707773448166,-500.0,0.00027269,2]
[313891783,1707773448175,-434.90323707,0.00027269,2]
[313891784,1707773448184,-500.0,0.00027269,2]
[313891785,1707773448194,-500.0,0.00027269,2]
[313891786,1707773448203,-1011.45,0.00027269,2]
[313891787,1707773448213,-500.0,0.00027269,2]
[313891788,1707773448222,-500.0,0.00027269,2]
[313891789,1707773448231,-500.0,0.00027269,2]
[313891790,1707773448241,-2964.36,0.00027269,2]
[313891791,1707773448250,-500.0,0.00027269,2]
[313891792,1707773448259,-500.0,0.00027269,2]
[313891793,1707773448268,-500.0,0.00027269,2]
[313891794,1707773448277,-300.0,0.000273,13]
[313891795,1707773448286,-155.0,0.00027397,2]
[313891796,1707773448295,-500.0,0.00027397,2]
[313891797,1707773448304,-500.0,0.00027397,2]
[313891798,1707773448314,-500.0,0.00027397,2]
[313891799,1707773448323,-500.0,0.00027397,2]
[313891800,1707773448332,-500.0,0.00027397,2]
[313891801,1707773448341,-562.33473585,0.00027397,2]
[313891802,1707773448350,-2812.37,0.00027397,2]
[313891803,1707773448360,-3357.62,0.00027397,2]
[313891804,1707773448370,-500.0,0.00027397,2]
[313891805,1707773448379,-500.0,0.00027397,2]
[313891806,1707773448388,-500.0,0.00027397,2]
[313891807,1707773448398,-500.0,0.00027397,2]
[313891808,1707773448407,-500.0,0.00027397,2]
[313891809,1707773448416,-500.0,0.00027397,2]
[313891810,1707773448425,-636.17,0.00027397,2]
[313891811,1707773448434,-1952.94,0.00027397,2]
[313891812,1707773448444,-150.1,0.00027397,2]
[313891813,1707773448453,-355.71232122,0.00027488,2]
[313891814,1707773448462,-634.35883011,0.00027488,2]
[313891815,1707773448471,-265.43201632,0.00027488,2]
[313891816,1707773448480,-500.0,0.00027488,2]
[313891817,1707773448490,-500.0,0.00027488,2]
[313891818,1707773448499,-500.0,0.00027488,2]
[313891819,1707773448508,-500.0,0.00027488,2]
[313891820,1707773448517,-335.93295832,0.00027488,2]
[313891822,1707773448526,-277.41468641,0.00027488,2]
[313891823,1707773448535,-500.0,0.00027488,2]
[313891825,1707773448544,-500.0,0.00027488,2]
[313891827,1707773448553,-500.0,0.00027488,2]
[313891829,1707773448562,-164.15452638,0.00027488,2]
[313891831,1707773448571,-500.0,0.00027488,2]
[313891833,1707773448580,-500.0,0.00027488,2]
[313891835,1707773448589,-454.77431557,0.00027488,2]
[313891837,1707773448598,-500.0,0.00027488,2]
[313891839,1707773448607,-396.62295068,0.00027488,2]
[313891841,1707773448617,-500.0,0.00027488,2]
[313891843,1707773448626,-500.0,0.00027488,2]
[313891845,1707773448636,-500.0,0.00027488,2]
[313891847,1707773448644,-500.0,0.00027488,2]
[313891849,1707773448657,-500.0,0.00027488,2]
[313891851,1707773448666,-500.0,0.00027488,2]
[313891853,1707773448675,-716.12791525,0.00027489,3]
[313891855,1707773448685,-50000.0,0.00027489,5]
[313891856,1707773448695,-150.0,0.000275,2]
[313891857,1707773448703,-500.0,0.00027534,2]
[313891859,1707773448713,-1280.95,0.00027543,2]
[313891860,1707773448722,-500.0,0.00027543,2]
[313891861,1707773448732,-500.0,0.00027543,2]
[313891863,1707773448741,-500.0,0.00027543,2]
[313891864,1707773448751,-1011.45,0.00027543,2]
[313891865,1707773448760,-500.0,0.00027543,2]
[313891866,1707773448770,-500.0,0.00027543,2]
[313891867,1707773448779,-500.0,0.00027543,2]
[313891868,1707773448788,-2964.36,0.00027543,2]
[313891869,1707773448797,-500.0,0.00027543,2]
[313891870,1707773448806,-500.0,0.00027543,2]
[313891871,1707773448816,-500.0,0.00027543,2]
[313891872,1707773448825,-500.3600126,0.00027615,2]
[313891873,1707773448835,-2812.37,0.00027671,2]
[313891874,1707773448845,-3357.62,0.00027671,2]
[313891875,1707773448855,-500.0,0.00027671,2]
[313891876,1707773448864,-500.0,0.00027671,2]
[313891877,1707773448874,-500.0,0.00027671,2]
[313891878,1707773448883,-500.0,0.00027671,2]
[313891879,1707773448892,-506.21289854,0.00027671,2]
[313891880,1707773448901,-500.0,0.00027671,2]
[313891881,1707773448911,-636.17,0.00027671,2]
[313891882,1707773448920,-1952.94,0.00027671,2]
[313891883,1707773448929,-250.0,0.00027715,2]
[313891884,1707773448939,-37080.86042547,0.00027715,2]
[313891885,1707773448949,-167.39970948,0.00027715,7]
[313891886,1707773448958,-523.40908104,0.00027716,2]
[313891887,1707773448967,-12322.5567052,0.00027716,2]
[313891888,1707773448976,-500.0,0.00027808,2]
[313891889,1707773448985,-1280.95,0.00027817,2]
[313891890,1707773448994,-505.47,0.00027817,2]
[313891891,1707773449005,-500.0,0.00027817,2]
[313891892,1707773449014,-500.0,0.00027817,2]
[313891893,1707773449023,-1011.45,0.00027817,2]
[313891894,1707773449032,-500.0,0.00027817,2]
[313891895,1707773449042,-503.87262693,0.00027817,2]
[313891896,1707773449050,-500.0,0.00027817,2]
[313891897,1707773449060,-2964.36,0.00027817,2]
[313891898,1707773449069,-500.0,0.00027817,2]
[313891899,1707773449078,-500.0,0.00027817,2]
[313891900,1707773449087,-500.0,0.00027817,2]
[313891901,1707773449097,-189.2981647,0.00027841,2]
[313891902,1707773449107,-153.34627261,0.00027854,2]
[313891903,1707773449117,-155.47874135,0.00027897,7]
[313891904,1707773449126,-211632.78877677,0.00027897,7]
[313891905,1707773449355,-718.27003238,0.00022443,2]
[313891906,1707773449364,-4594.84413319,0.0002277,3]
[313892065,1707774635650,-873.1806744,0.000202,2]
[313892066,1707774635661,-742.04082584,0.000202,2]
[313892067,1707774635671,-563.60587193,0.000202,2]
[313892068,1707774635680,-261.26593856,0.00020201,2]
[313892069,1707774635689,-154.93802479,0.00020202,4]
[313892070,1707774635699,-154.93802479,0.00020202,2]
[313892071,1707774635709,-1733.97919696,0.00020204,2]
[313892072,1707774635718,-166.666666,0.00020338,2]
[313892073,1707774635728,-3340.82808624,0.00020498,2]
[313892074,1707774635738,-1585.3908511,0.00020746,2]
[313892075,1707774635747,-640.199749,0.00020752,2]
[313892076,1707774635757,-169.22422,0.00020875,2]
[313892077,1707774635766,-166.666666,0.00020892,2]
[313892078,1707774635775,-166.666666,0.00021447,2]
[313892079,1707774635784,-8683.55680084,0.00021632,2]
[313892080,1707774635794,-247.38920084,0.00022,4]
[313892081,1707774635803,-326.73535811,0.00022,2]
[313892082,1707774635812,-427.63664462,0.00022,2]
[313892083,1707774635822,-166.666666,0.00022001,2]
[313892084,1707774635832,-5000.0,0.00022095,5]
[313892085,1707774635841,-200.0,0.00022547,7]
[313892086,1707774635850,-166.666666,0.00022556,2]
[313892087,1707774635859,-3071.22593965,0.0002267,2]
[313892088,1707774635869,-12909.58,0.0002276,3]
[313892089,1707774635878,-250.0,0.00022769,2]
[313892090,1707774635888,-402.00358314,0.0002277,2]
[313892091,1707774635897,-154.93802479,0.0002277,2]
[313892092,1707774635906,-154.93802479,0.0002277,2]
[313892093,1707774635916,-271.90639285,0.0002277,2]
[313892094,1707774635926,-52824.151535,0.0002277,2]
[313892122,1707774638858,-251.48880645,0.0002277,2]
[313892140,1707774641988,-2911.80322778,0.0002277,2]
[313892205,1707774643741,-516.30088053,0.0002276,3]
[313892206,1707774643753,-375.34693198,0.0002276,3]
[313892207,1707774643765,-616.38,0.0002276,3]
[313892226,1707774646718,-9249.96218749,0.0002276,3]
[313892227,1707774646727,-3147.42946981,0.0002277,2]
[313892443,1707775834143,-1224.36094035,0.00018119,2]
[313892446,1707775834155,-73.97830954,0.00018119,2]
[313892448,1707775834164,-18971.13263519,0.00018119,2]
[313892450,1707775834173,-679.0873968,0.0001812,2]
[313892452,1707775834182,-2824.55519825,0.0001812,2]
[313892454,1707775834191,-163.20812248,0.00018121,2]
[313892456,1707775834199,-155.51614598,0.00018121,2]
[313892458,1707775834208,-7988.56816619,0.00018121,2]
[313892460,1707775834217,-154.95351395,0.00018122,2]
[313892461,1707775834226,-873.1806744,0.00018122,2]
[313892464,1707775834236,-1733.97919696,0.00018122,2]
[313892466,1707775834246,-154.95351395,0.00018123,3]
[313892468,1707775834255,-2608.13285009,0.00018123,2]
[313892470,1707775834264,-1948.7295734,0.00018123,2]
[313892471,1707775834273,-433.363769,0.00018162,2]
[313892473,1707775834283,-24900.0,0.00018656,2]
[313892475,1707775834292,-168.130358,0.00019178,2]
[313892477,1707775834301,-166.666666,0.00019178,2]
[313892479,1707775834310,-168.984538,0.00019178,2]
[313892481,1707775834320,-166.666666,0.00019627,2]
[313892483,1707775834329,-200.0,0.00019935,2]
[313892485,1707775834338,-742.04082584,0.00020075,2]
[313892487,1707775834349,-166.666666,0.00020076,2]
[313892489,1707775834360,-5964.08,0.00020458,3]
[313892491,1707775834369,-8588.27,0.00020468,3]
[313892493,1707775834378,-1369.86135853,0.00020468,3]
[313892502,1707775834457,-1273.39200881,0.00020468,3]
[313892504,1707775834468,-4513.64663266,0.00020468,3]
[313892505,1707775834478,-368.46507221,0.00020478,3]
[313892521,1707775837875,-4970.07,0.00020448,3]
[313892522,1707775837884,-15.65001584,0.0002048,2]
[313892523,1707775837897,-547.95585609,0.0002048,2]
[313892524,1707775837907,-2714.74779103,0.00020484,2]
[313892525,1707775837916,-1727.18749606,0.00020488,2]
[313892526,1707775837927,-325.33824744,0.00020488,2]
[313892536,1707775841085,-9349.18447474,0.00020488,2]
[313892537,1707775841096,-166.666666,0.00020524,2]
[313892538,1707775841106,-723.76958628,0.0002067,2]
[313892539,1707775841115,-166.666666,0.00020973,2]
[313892540,1707775841124,-428.24405243,0.00020999,2]
[313892541,1707775841134,-154.93802479,0.00021,2]
[313892542,1707775841143,-21008.24834839,0.00021,2]
[313892543,1707775841152,-9151.14506321,0.00021,2]
[313892544,1707775841164,-744.64940392,0.00021,2]
[313892545,1707775841287,-195.02426221,0.00021,2]
[313892546,1707775841297,-166.666666,0.00021422,2]
[313892547,1707775841307,-3886.45966787,0.00021632,2]
[313892566,1707775842922,-1158.72064682,0.00021632,2]
[313892567,1707775842934,-3638.37648615,0.00021632,2]
[313892568,1707775842943,-280.0,0.00021928,7]
[313892569,1707775842953,-247.38920084,0.00022,4]
[313892570,1707775842962,-326.73535811,0.00022,2]
[313892571,1707775842971,-427.63664462,0.00022,2]
[313892572,1707775842980,-11888.52381892,0.00022,2]
[313892573,1707775842990,-250.0,0.00022669,2]
[313892574,1707775842999,-500.0,0.00022669,2]
[313892575,1707775843008,-210.89462194,0.00022669,2]
[313892576,1707775843017,-500.0,0.00022669,2]
[313892577,1707775843026,-298.56049544,0.0002267,2]
[313892578,1707775843035,-148869.39744122,0.0002267,2]
[313892579,1707775843044,-156.30693683,0.00022756,2]
[313892580,1707775843053,-295.90443276,0.00022756,2]
[313892581,1707775843062,-175.72920133,0.00022757,2]
[313892582,1707775843072,-642.61328642,0.00022757,2]
[313892583,1707775843081,-155.11311357,0.00022766,2]
[313892584,1707775843090,-219.63878128,0.00022766,2]
[313892585,1707775843099,-156.02581388,0.00022767,2]
[313892586,1707775843108,-2720.42581278,0.00022767,2]
[313892587,1707775843117,-261.0754653,0.00022768,2]
[313892588,1707775843126,-1018.7537034,0.00022768,2]
[313892589,1707775843135,-821.15351128,0.00022768,2]
[313892590,1707775843145,-37080.86042547,0.00022768,2]
[313892591,1707775843154,-1746.49526169,0.00022768,2]
[313892592,1707775843163,-651.85853467,0.00022768,2]
[313892593,1707775843172,-181.61100377,0.00022768,2]
[313892594,1707775843181,-590.3509011,0.00022768,2]
[313892595,1707775843190,-500.0,0.00022769,2]
[313892596,1707775843199,-155.05743137,0.00022769,2]
[313892597,1707775843208,-546.55262822,0.0002277,3]
[313892598,1707775843217,-157287.38141973,0.0002277,2]
[313892599,1707775843226,-1833.12108864,0.0002277,2]
[313892600,1707775843236,-2092.52534233,0.0002277,2]
[313892601,1707775843245,-344.29963727,0.0002277,2]
[313892602,1707775843253,-300.0,0.0002277,2]
[313892603,1707775843263,-10329.6905049,0.0002277,2]
[313892604,1707775843272,-402.00358314,0.0002277,2]
[313892605,1707775843281,-273.41494052,0.0002277,2]
[313892606,1707775843290,-205.86964439,0.0002277,2]
[313892607,1707775843299,-155.95249085,0.0002277,2]
[313892608,1707775843308,-200.0,0.0002277,2]
[313892609,1707775843322,-155.1193995,0.00022778,2]
[313892610,1707775843331,-338.39128981,0.00022778,2]
[313892611,1707775843340,-481.7415868,0.00022778,2]
[313892612,1707775843351,-155.08840039,0.00022778,2]
[313892613,1707775843362,-2393.00422486,0.00022862,2]
[313892614,1707775843371,-9777.27519945,0.00022862,2]
[313892615,1707775843381,-15494.7592372,0.00022862,2]
[313892616,1707775843391,-4648.42777115,0.00022862,2]
[313892617,1707775843400,-4603.78478343,0.00022862,2]
[313892618,1707775843409,-839.65060521,0.00022862,2]
[313892619,1707775843419,-12497.52543007,0.00022862,2]
[313892620,1707775843429,-9976.71224854,0.00023,2]
[313892621,1707775843438,-1264.21341125,0.00023,2]
[313892622,1707775843450,-180.89830211,0.00023123,3]
[313892623,1707775843460,-158.54511026,0.00023123,3]
[313892624,1707775843469,-169.40696197,0.00023123,3]
[313892625,1707775843478,-500.0,0.00023354,2]
[313892626,1707775843487,-3918.12632401,0.00024,2]
[313892627,1707775843496,-750.0,0.00024039,2]
[313892628,1707775843505,-391.0,0.00024121,7]
[313892629,1707775843515,-300.0,0.000243,11]
[313892630,1707775843524,-298.56049544,0.00024584,2]
[313892631,1707775843533,-286.39951041,0.00024656,2]
[313892632,1707775843543,-328.62902484,0.00024656,2]
[313892633,1707775843552,-500.0,0.00024656,2]
[313892634,1707775843562,-500.0,0.00024656,2]
[313892635,1707775843571,-500.0,0.00024656,2]
[313892636,1707775843581,-500.0,0.00024656,2]
[313892637,1707775843589,-301.42992981,0.00024656,2]
[313892638,1707775843598,-444.05118108,0.00024656,2]
[313892639,1707775843607,-327.23092049,0.00024656,2]
[313892640,1707775843616,-539.21871581,0.00024656,2]
[313892641,1707775843625,-500.0,0.00024656,2]
[313892642,1707775843635,-244.19028048,0.00024656,2]
[313892643,1707775843646,-500.0,0.00024656,2]
[313892644,1707775843655,-500.0,0.00024656,2]
[313892645,1707775843664,-500.0,0.00024656,2]
[313892646,1707775843673,-500.0,0.00024656,2]
[313892647,1707775843686,-500.0,0.00024656,2]
[313892648,1707775843696,-500.0,0.00024656,2]
[313892649,1707775843706,-500.0,0.00024656,2]
[313892650,1707775843717,-305.74296082,0.00024656,2]
[313892651,1707775843728,-500.0,0.00024656,2]
[313892652,1707775843738,-500.0,0.00024656,2]
[313892653,1707775843747,-500.0,0.00024657,2]
[313892654,1707775843758,-500.0,0.00024657,2]
[313892655,1707775843768,-500.0,0.00024657,2]
[313892656,1707775843777,-500.0,0.00024657,2]
[313892657,1707775843786,-500.0,0.00024657,2]
[313892658,1707775843796,-500.0,0.00024657,2]
[313892659,1707775843807,-500.0,0.00024657,2]
[313892660,1707775843817,-500.0,0.00024657,2]
[313892661,1707775843827,-500.0,0.00024657,2]
[313892662,1707775843837,-500.0,0.00024657,2]
[313892663,1707775843846,-500.0,0.00024657,2]
[313892664,1707775843855,-500.0,0.00024657,2]
[313892665,1707775843865,-500.0,0.00024657,2]
[313892666,1707775843874,-2675.17,0.00024657,2]
[313892667,1707775843883,-1605.7,0.00024657,2]
[313892668,1707775843894,-500.0,0.00024657,2]
[313892669,1707775843903,-1437.97,0.00024657,2]
[313892670,1707775843915,-1077.82,0.00024657,2]
[313892671,1707775843926,-500.0,0.00024657,2]
[313892672,1707775843938,-500.0,0.00024657,2]
[313892673,1707775843947,-500.0,0.00024657,2]
[313892674,1707775843957,-500.0,0.00024657,2]
[313892675,1707775843966,-500.0,0.00024657,2]
[313892676,1707775843976,-1918.7,0.00024657,2]
[313892677,1707775843986,-500.0,0.00024657,2]
[313892678,1707775843995,-500.0,0.00024657,2]
[313892679,1707775844006,-500.0,0.00024657,2]
[313892680,1707775844015,-500.0,0.00024657,2]
[313892681,1707775844024,-610.38,0.00024657,2]
[313892682,1707775844034,-1115.86,0.00024657,2]
[313892683,1707775844043,-500.0,0.00024657,2]
[313892684,1707775844052,-500.0,0.00024657,2]
[313892685,1707775844062,-500.0,0.00024657,2]
[313892686,1707775844072,-500.0,0.00024657,2]
[313892687,1707775844081,-500.0,0.00024657,2]
[313892688,1707775844091,-1000.0,0.00024724,2]
[313892689,1707775844100,-500.0,0.00024931,2]
[313892690,1707775844109,-500.0,0.00024931,2]
[313892691,1707775844118,-288.28325357,0.00024931,2]
[313892692,1707775844127,-500.0,0.00024931,2]
[313892693,1707775844138,-500.0,0.00024931,2]
[313892694,1707775844147,-500.0,0.00024931,2]
[313892695,1707775844157,-500.0,0.00024931,2]
[313892696,1707775844167,-500.0,0.00024931,2]
[313892697,1707775844177,-500.0,0.00024931,2]
[313892698,1707775844186,-500.0,0.00024931,2]
[313892699,1707775844195,-2675.17,0.00024931,2]
[313892700,1707775844204,-1605.7,0.00024931,2]
[313892701,1707775844213,-500.0,0.00024931,2]
[313892702,1707775844222,-1437.97,0.00024931,2]
[313892703,1707775844233,-1077.82,0.00024931,2]
[313892704,1707775844243,-500.0,0.00024931,2]
[313892705,1707775844252,-500.0,0.00024931,2]
[313892706,1707775844261,-500.0,0.00024931,2]
[313892707,1707775844270,-500.0,0.00024931,2]
[313892708,1707775844280,-1918.7,0.00024931,2]
[313892709,1707775844290,-500.0,0.00024931,2]
[313892710,1707775844299,-500.0,0.00024931,2]
[313892711,1707775844308,-500.0,0.00024931,2]
[313892712,1707775844318,-610.38,0.00024931,2]
[313892713,1707775844327,-1115.86,0.00024931,2]
[313892714,1707775844337,-500.0,0.00024931,2]
[313892715,1707775844346,-500.0,0.00024931,2]
[313892716,1707775844356,-500.0,0.00024931,2]
[313892717,1707775844368,-500.0,0.00024931,2]
[313892718,1707775844377,-335.81448194,0.00025,2]
[313892719,1707775844386,-7412.2245313,0.00025,2]
[313892720,1707775844395,-154.93802479,0.00025,2]
[313892721,1707775844406,-203.807,0.00025055,2]
[313892722,1707775844415,-154.93802479,0.00025107,2]
[313892723,1707775844424,-451.5322726,0.00025205,2]
[313892724,1707775844434,-151.0,0.00025205,2]
[313892725,1707775844443,-500.0,0.00025205,2]
[313892726,1707775844453,-500.0,0.00025205,2]
[313892727,1707775844462,-500.0,0.00025205,2]
[313892728,1707775844471,-500.0,0.00025205,2]
[313892729,1707775844480,-500.0,0.00025205,2]
[313892730,1707775844490,-222.0747536,0.00025205,2]
[313892731,1707775844500,-2675.17,0.00025205,2]
[313892732,1707775844510,-1605.7,0.00025205,2]
[313892733,1707775844519,-500.0,0.00025205,2]
[313892734,1707775844528,-1437.97,0.00025205,2]
[313892735,1707775844538,-1077.82,0.00025205,2]
[313892736,1707775844547,-220.051663,0.00025205,2]
[313892737,1707775844556,-500.0,0.00025205,2]
[313892738,1707775844565,-151.0,0.00025205,2]
[313892739,1707775844609,-500.0,0.00025205,2]
[313892740,1707775844618,-500.0,0.00025205,2]
[313892741,1707775844627,-222.30625137,0.00025205,2]
[313892742,1707775844636,-151.0,0.00025205,2]
[313892743,1707775844645,-1918.7,0.00025205,2]
[313892744,1707775844654,-500.0,0.00025205,2]
[313892745,1707775844663,-500.0,0.00025205,2]
[313892746,1707775844672,-500.0,0.00025205,2]
[313892747,1707775844681,-610.38,0.00025205,2]
[313892748,1707775844691,-1115.86,0.00025205,2]
[313892749,1707775844699,-500.0,0.00025205,2]
[313892750,1707775844708,-500.0,0.00025205,2]
[313892751,1707775844718,-500.0,0.00025205,2]
[313892752,1707775844726,-500.0,0.00025205,2]
[313892753,1707775844735,-1105.79152745,0.0002538,2]
[313892754,1707775844744,-1250.0,0.00025409,2]
[313892755,1707775844753,-500.0,0.00025479,2]
[313892756,1707775844762,-500.0,0.00025479,2]
[313892757,1707775844771,-500.0,0.00025479,2]
[313892758,1707775844780,-201.61430334,0.00025479,2]
[313892759,1707775844789,-500.0,0.00025479,2]
[313892760,1707775844798,-2675.17,0.00025479,2]
[313892761,1707775844807,-1605.7,0.00025479,2]
[313892762,1707775844816,-500.0,0.00025479,2]
[313892763,1707775844825,-1437.97,0.00025479,2]
[313892764,1707775844834,-1077.82,0.00025479,2]
[313892765,1707775844843,-500.0,0.00025479,2]
[313892766,1707775844852,-500.0,0.00025479,2]
[313892767,1707775844861,-155.29540615,0.00025479,2]
[313892768,1707775844871,-1918.7,0.00025479,2]
[313892769,1707775844879,-500.0,0.00025479,2]
[313892770,1707775844888,-500.0,0.00025479,2]
[313892771,1707775844897,-500.0,0.00025479,2]
[313892772,1707775844906,-610.38,0.00025479,2]
[313892773,1707775844915,-1115.86,0.00025479,2]
[313892774,1707775844924,-500.0,0.00025479,2]
[313892775,1707775844933,-500.0,0.00025479,2]
[313892776,1707775844942,-500.0,0.00025479,2]
[313892777,1707775844951,-500.0,0.00025479,2]
[313892778,1707775844960,-723.76958628,0.0002567,2]
[313892779,1707775844969,-500.0,0.00025753,2]
[313892780,1707775844978,-500.0,0.00025753,2]
[313892781,1707775844986,-534.33,0.00025753,2]
[313892782,1707775844995,-500.0,0.00025753,2]
[313892783,1707775845004,-2675.17,0.00025753,2]
[313892784,1707775845013,-1605.7,0.00025753,2]
[313892785,1707775845021,-500.0,0.00025753,2]
[313892786,1707775845031,-1437.97,0.00025753,2]
[313892787,1707775845040,-1077.82,0.00025753,2]
[313892788,1707775845049,-500.0,0.00025753,2]
[313892789,1707775845058,-500.0,0.00025753,2]
[313892790,1707775845067,-1918.7,0.00025753,2]
[313892791,1707775845076,-500.0,0.00025753,2]
[313892792,1707775845085,-500.0,0.00025753,2]
[313892793,1707775845094,-500.0,0.00025753,2]
[313892794,1707775845103,-610.38,0.00025753,2]
[313892795,1707775845114,-1115.86,0.00025753,2]
[313892796,1707775845123,-500.0,0.00025753,2]